bitfinex/quotes_BTCUSD_20260104
["timestamp","ask_amount","ask_price","bid_price","bid_amount"]
[1767513019564,0.01093864,91419.0,91390.0,0.00023006]
[1767513019565,0.0109402,91406.0,91404.0,0.05470198]
[1767513019751,0.01089519,91406.0,91403.0,0.06564318]
[1767513019951,0.05470162,91405.0,91402.0,0.06564396]
[1767513020159,0.05370262,91405.0,91402.0,0.06564396]
[1767513021479,0.06464294,91405.0,91402.0,0.01094067]
[1767513021658,0.06564265,91404.0,91400.0,0.11484071]
[1767513022239,0.06564227,91405.0,91402.0,0.05470339]
[1767513022841,0.06564227,91405.0,91402.0,0.06564406]
[1767513023230,0.06564227,91405.0,91402.0,0.05470338]
[1767513023454,0.0547028,91403.0,91401.0,0.06564472]
[1767513024462,0.05463409,91403.0,91401.0,0.06564472]
[1767513024630,0.05463409,91403.0,91401.0,0.01094079]
[1767513025032,0.05458908,91403.0,91401.0,0.01094079]
[1767513025668,0.05469925,91409.0,91406.0,0.06564062]
[1767513026305,0.01093996,91408.0,91405.0,0.01094032]
[1767513026515,0.0656403,91408.0,91405.0,0.06564181]
[1767513029744,0.0109396,91411.0,91407.0,0.0547004]
[1767513030003,0.05469476,91417.0,91413.0,0.05469665]
[1767513030307,0.0546952,91416.0,91413.0,0.05469681]
[1767513030481,0.05469598,91415.0,91412.0,0.01093948]
[1767513030658,0.010939,91416.0,91412.0,0.01093948]
[1767513030893,0.0546959,91415.0,91412.0,0.01093948]
[1767513031785,0.06563383,91417.0,91414.0,0.05469621]
[1767513031987,0.01093888,91417.0,91415.0,0.04724199]
[1767513032688,0.00993988,91417.0,91414.0,0.06563545]
[1767513033182,0.06563403,91416.0,91413.0,0.06563499]
[1767513033934,0.01099899,91413.0,91411.0,0.0546975]
[1767513034148,0.07663569,91413.0,91410.0,0.11278027]
[1767513034272,0.06563627,91413.0,91410.0,0.11278027]
[1767513034774,0.05469756,91412.0,91410.0,0.11278027]
[1767513035577,0.05469756,91412.0,91410.0,0.01083969]
[1767513035816,0.06563764,91411.0,91408.0,0.10079121]
[1767513036011,0.06563764,91411.0,91409.0,0.04609184]
[1767513036893,0.05469861,91410.0,91409.0,0.04609184]
[1767513037095,0.06563764,91411.0,91409.0,0.04509284]
[1767513037870,0.05469861,91410.0,91409.0,0.04509284]
[1767513039155,0.06563764,91411.0,91409.0,0.04509284]
[1767513040866,0.06563764,91411.0,91408.0,0.06563955]
[1767513041033,0.06563764,91411.0,91408.0,0.11173139]
[1767513041544,0.06563764,91411.0,91409.0,0.054699]
[1767513041743,0.06563619,91413.0,91410.0,0.06563833]
[1767513042453,0.05469741,91412.0,91410.0,0.01093972]
[1767513043053,0.05469741,91412.0,91409.0,0.06563884]
[1767513043601,0.05469822,91411.0,91409.0,0.06563884]
[1767513044211,0.06563689,91412.0,91409.0,0.06563884]
[1767513044390,0.0546981,91411.0,91409.0,0.06563884]
[1767513047376,0.01093936,91413.0,91411.0,0.05569656]
[1767513047597,0.01093936,91413.0,91411.0,0.05469756]
[1767513048009,0.06563482,91415.0,91413.0,0.05469681]
[1767513048211,0.01093912,91415.0,91413.0,0.05469681]
[1767513048709,0.0546951,91416.0,91413.0,0.05469681]
[1767513049094,0.0546951,91416.0,91414.0,0.05469606]
[1767513049492,0.06563382,91417.0,91414.0,0.05469606]
[1767513050207,0.02188,91418.0,91417.0,0.05469442]
[1767513050362,0.02188,91418.0,91415.0,0.01093912]
[1767513050363,0.07657397,91418.0,91416.0,0.0546947]
[1767513050564,0.07657397,91418.0,91415.0,0.06563464]
[1767513050891,0.02188,91418.0,91416.0,0.05469478]
[1767513051091,0.076574,91418.0,91415.0,0.06563464]
[1767513052213,0.054694,91418.0,91415.0,0.06563464]
[1767513052810,0.06563276,91418.0,91415.0,0.06563464]
[1767513053192,0.01009999,91415.0,91413.0,0.05469649]
[1767513053398,0.06469562,91415.0,91412.0,0.06563678]
[1767513053575,0.06469562,91415.0,91410.0,0.02188]
[1767513053576,0.05469801,91411.0,91410.0,0.02188]
[1767513053999,0.05469741,91412.0,91410.0,0.02178]
[1767513054176,0.06563618,91413.0,91410.0,0.07643454]
[1767513054384,0.05469592,91415.0,91413.0,0.0001]
[1767513054583,0.06563454,91416.0,91413.0,0.0001]
[1767513054785,0.05469611,91415.0,91413.0,0.0001]
[1767513054984,0.05469611,91415.0,91412.0,0.05469694]
[1767513055425,0.06563523,91415.0,91412.0,0.06563642]
[1767513055725,0.06553523,91415.0,91412.0,0.06563642]
[1767513056526,0.06553523,91415.0,91413.0,0.05469667]
[1767513056774,0.06553523,91415.0,91412.0,0.06563642]
[1767513057967,0.01093912,91415.0,91413.0,0.05469646]
[1767513058991,0.06563485,91415.0,91413.0,0.05469646]
[1767513059227,0.01093864,91419.0,91416.0,0.010939]
[1767513059469,0.05469083,91423.0,91421.0,0.05449186]
[1767513059585,0.06562878,91424.0,91420.0,0.065631]
[1767513059919,0.05469131,91423.0,91420.0,0.065631]
[1767513060242,0.06562973,91422.0,91419.0,0.05469216]
[1767513060600,0.01093828,91422.0,91420.0,0.05469258]
[1767513060808,0.06562947,91423.0,91420.0,0.0656311]
[1767513061125,0.15125057,91754.0,91416.0,0.22971668]
[1767513061126,0.01093685,91434.0,91430.0,0.01093732]
[1767513061291,0.01101976,91434.0,91431.0,0.0656228]
[1767513061486,8.291e-05,91434.0,91432.0,0.05468497]
[1767513061936,0.05476718,91434.0,91432.0,0.05468497]
[1767513062140,8.291e-05,91434.0,91433.0,0.05468485]
[1767513062340,0.06561913,91437.0,91433.0,0.05468479]
[1767513062502,0.01193597,91433.0,91429.0,0.01093744]
[1767513062701,0.02093696,91433.0,91431.0,0.05468585]
[1767513062947,0.07562183,91433.0,91431.0,0.05468585]
[1767513063141,0.07562183,91433.0,91430.0,0.06562396]
[1767513063467,0.07562183,91433.0,91429.0,0.01093744]
[1767513063628,0.00999999,91433.0,91430.0,0.01093732]
[1767513063995,0.00999999,91433.0,91431.0,0.05468549]
[1767513064243,0.06562113,91434.0,91431.0,0.0109372]
[1767513064445,0.06562113,91434.0,91431.0,0.06562312]
[1767513065850,0.06562113,91434.0,91432.0,0.05468524]
[1767513065992,0.01093685,91434.0,91432.0,0.05468524]
[1767513066199,0.21872813,91438.0,91432.0,0.05468524]
[1767513066200,0.01093637,91438.0,91434.0,0.05468425]
[1767513066398,0.05468258,91437.0,91434.0,0.0656211]
[1767513066749,0.06561939,91438.0,91435.0,0.05468358]
[1767513067248,0.06561939,91438.0,91436.0,0.05468303]
[1767513067855,0.00993737,91438.0,91436.0,0.05468303]
[1767513068915,0.06461934,91438.0,91436.0,0.05468303]
[1767513070387,0.00993737,91438.0,91436.0,0.05468303]
[1767513070703,0.06461958,91438.0,91435.0,0.06562031]
[1767513071348,0.002196,91438.0,91437.0,0.05468245]
[1767513071545,0.002196,91438.0,91435.0,0.06562031]
[1767513071546,0.00047827,91442.0,91441.0,0.05468006]
[1767513071865,0.01093553,91445.0,91443.0,0.0546788]
[1767513072030,0.06561183,91447.0,91443.0,0.0546788]
[1767513072230,0.000152,91448.0,91445.0,0.01093553]
[1767513072642,0.000152,91448.0,91447.0,0.05467647]
[1767513074570,0.000152,91448.0,91446.0,0.05467671]
[1767513074776,0.000152,91448.0,91447.0,0.05467647]
[1767513075488,0.06560683,91454.0,91451.0,0.05467385]
[1767513075706,0.06560683,91454.0,91449.0,0.05467478]
[1767513075707,0.000999,91451.0,91448.0,0.06561088]
[1767513075950,0.00091104,91451.0,91449.0,0.05467498]
[1767513076168,0.01093457,91453.0,91450.0,0.06560961]
[1767513076342,0.01093457,91453.0,91451.0,0.05467402]
[1767513076542,0.06560703,91454.0,91450.0,0.06560961]
[1767513076708,0.05467318,91453.0,91450.0,0.06560961]
[1767513076909,0.01093445,91454.0,91452.0,0.05467348]
[1767513077107,0.01093445,91454.0,91452.0,0.05376248]
[1767513077437,0.09839175,91455.0,91452.0,0.06469717]
[1767513078149,0.09839175,91455.0,91452.0,0.06560787]
[1767513078150,0.05465433,91455.0,91452.0,0.06560787]
[1767513078457,0.06560617,91455.0,91453.0,0.05447274]
[1767513078611,0.01093433,91455.0,91453.0,0.05447274]
[1767513078942,0.06560627,91455.0,91452.0,0.06560787]
[1767513079241,0.06560627,91455.0,91453.0,0.05467282]
[1767513079545,0.01093433,91455.0,91453.0,0.05447275]
[1767513080041,0.0874858,91456.0,91453.0,0.05447275]
[1767513080245,0.020881,91456.0,91452.0,0.01093469]
[1767513081241,0.05467221,91455.0,91453.0,0.05467276]
[1767513081612,0.07555215,91456.0,91453.0,0.05467276]
[1767513081816,0.01093433,91455.0,91453.0,0.05467276]
[1767513082033,0.08648636,91456.0,91453.0,0.05467276]
[1767513082237,0.020881,91456.0,91455.0,0.05467169]
[1767513087374,0.020881,91456.0,91454.0,0.05467223]
[1767513087585,0.06560341,91459.0,91455.0,0.01093433]
[1767513087586,0.04027926,91459.0,91455.0,0.01093433]
[1767513087790,0.04027926,91459.0,91453.0,0.01093457]
[1767513087791,0.01093398,91458.0,91453.0,0.06560691]
[1767513087930,0.0546719,91455.0,91452.0,0.04620075]
[1767513088139,0.0546723,91454.0,91452.0,0.05713544]
[1767513088347,0.01093445,91454.0,91450.0,0.10087499]
[1767513088550,0.06560801,91453.0,91451.0,0.02188]
[1767513088790,0.01093457,91453.0,91451.0,0.02188]
[1767513089007,0.01093445,91454.0,91452.0,0.05467348]
[1767513089231,0.0656064,91455.0,91452.0,0.06560817]
[1767513089465,0.06560623,91455.0,91452.0,0.06560817]
[1767513089828,0.01093421,91456.0,91453.0,0.06560691]
[1767513090027,0.01093421,91456.0,91453.0,0.0108906]
[1767513090392,0.06560582,91456.0,91453.0,0.06556329]
[1767513090737,0.06560617,91455.0,91452.0,0.06560811]
[1767513090940,0.06560514,91457.0,91452.0,0.06560811]
[1767513091236,0.05467124,91456.0,91453.0,0.06560746]
[1767513091540,0.01093398,91458.0,91454.0,0.01093445]
[1767513091686,0.01093398,91458.0,91454.0,0.06560622]
[1767513091890,0.06560439,91458.0,91455.0,0.0656055]
[1767513092090,0.06569449,91459.0,91455.0,0.0656055]
[1767513092432,0.0546699,91458.0,91456.0,0.05467094]
[1767513092633,0.0546699,91458.0,91455.0,0.0656055]
[1767513092843,0.06569405,91459.0,91456.0,0.05467085]
[1767513093394,0.01093398,91458.0,91455.0,0.0656055]
[1767513093748,0.01093398,91458.0,91456.0,0.0546708]
[1767513093950,0.06569405,91459.0,91456.0,0.0546708]
[1767513094242,0.01102468,91459.0,91457.0,0.05467037]
[1767513094497,0.06569435,91459.0,91456.0,0.06560501]
[1767513094689,0.01093398,91458.0,91453.0,0.01093457]
[1767513094910,0.01093398,91458.0,91455.0,0.0546713]
[1767513094911,0.0109341,91457.0,91455.0,0.0546713]
[1767513095479,0.06560415,91458.0,91455.0,0.06560563]
[1767513095681,0.06560415,91458.0,91456.0,0.05467098]
[1767513096402,9.082e-05,91459.0,91457.0,0.05467047]
[1767513096564,0.05476037,91459.0,91458.0,0.000999]
[1767513096765,0.05476037,91459.0,91456.0,0.06560519]
[1767513096985,9.082e-05,91459.0,91457.0,0.05467027]
[1767513097363,8.2e-07,91459.0,91456.0,0.06560519]
[1767513097588,0.05481715,91466.0,91463.0,0.01083335]
[1767513097787,0.000152,91466.0,91464.0,0.05466627]
[1767513098189,0.000152,91466.0,91465.0,0.05456568]
[1767513098841,0.01093278,91468.0,91466.0,0.05466502]
[1767513099044,0.06559684,91468.0,91465.0,0.06540882]
[1767513099327,0.0546646,91467.0,91465.0,0.06540882]
[1767513099518,0.0655975,91467.0,91464.0,0.05466584]
[1767513100044,0.0655975,91467.0,91464.0,0.0655991]
[1767513100543,0.05466553,91466.0,91464.0,0.01093326]
[1767513100886,0.05381853,91466.0,91464.0,0.01093326]
[1767513101109,0.01093278,91468.0,91464.0,0.06559912]
[1767513101420,0.06559708,91468.0,91464.0,0.06559912]
[1767513101584,0.0109329,91467.0,91464.0,0.01093326]
[1767513102007,0.0655957,91470.0,91467.0,0.06559699]
[1767513102226,0.04027926,91469.0,91468.0,0.05466392]
[1767513102449,0.0109329,91467.0,91465.0,0.04704455]
[1767513102673,0.06659683,91468.0,91465.0,0.04704455]
[1767513102877,0.06659683,91468.0,91465.0,0.11264329]
[1767513102878,0.05566299,91468.0,91465.0,0.11264329]
[1767513103149,0.05466399,91468.0,91465.0,0.11264329]
[1767513103700,0.05466455,91467.0,91465.0,0.05797769]
[1767513104106,0.06559677,91468.0,91465.0,0.1126431]
[1767513104307,0.05466512,91466.0,91465.0,0.04704455]
[1767513105138,0.05466512,91466.0,91465.0,0.04604555]
[1767513105952,0.06560145,91462.0,91460.0,0.05466863]
[1767513106151,0.06560115,91462.0,91460.0,0.10171315]
[1767513106303,0.06560115,91462.0,91460.0,0.04704455]
[1767513106502,0.06560115,91462.0,91459.0,0.06560292]
[1767513106737,0.0109335,91462.0,91459.0,0.06560292]
[1767513107066,0.05466702,91463.0,91462.0,0.000999]
[1767513107458,0.05466702,91463.0,91460.0,0.06560191]
[1767513107919,0.0656004,91463.0,91460.0,0.06560191]
[1767513109259,0.06559963,91464.0,91463.0,0.000999]
[1767513109458,0.06559963,91464.0,91460.0,0.06560191]
[1767513109661,0.06560051,91463.0,91459.0,0.06560268]
[1767513109821,0.06560051,91463.0,91461.0,0.04704455]
[1767513110025,0.05466751,91462.0,91461.0,0.04704455]
[1767513110229,0.06560051,91463.0,91461.0,0.04704455]
[1767513110440,0.05466751,91462.0,91461.0,0.04704455]
[1767513112089,0.05466751,91462.0,91461.0,0.03704456]
[1767513112423,0.06560051,91463.0,91458.0,0.06892455]
[1767513112424,0.0546693,91459.0,91458.0,0.06892455]
[1767513112556,0.0656023,91461.0,91459.0,0.04804355]
[1767513113144,0.0546687,91460.0,91459.0,0.04700058]
[1767513113353,0.0656023,91461.0,91460.0,0.04704455]
[1767513113354,0.0546681,91461.0,91460.0,0.04704455]
[1767513114719,0.05466892,91460.0,91458.0,0.07985853]
[1767513114918,0.05466892,91460.0,91459.0,0.04704455]
[1767513116465,0.0546687,91460.0,91459.0,0.04700058]
[1767513116664,0.0536697,91460.0,91459.0,0.04704455]
[1767513116863,0.01093338,91463.0,91459.0,0.04704455]
[1767513117124,0.06560034,91463.0,91461.0,0.04704455]
[1767513117318,0.05466694,91463.0,91461.0,0.10171235]
[1767513117540,0.06560064,91464.0,91462.0,0.05466734]
[1767513117727,0.01093326,91464.0,91461.0,0.04704455]
[1767513117928,0.05466712,91463.0,91461.0,0.04704455]
[1767513118131,0.05466751,91462.0,91461.0,0.04704455]
[1767513118336,0.01093326,91464.0,91461.0,0.04704455]
[1767513118533,0.05466745,91463.0,91461.0,0.04704455]
[1767513119258,0.06560083,91463.0,91460.0,0.06560193]
[1767513119749,0.01093326,91464.0,91461.0,0.01093362]
[1767513119927,0.06560036,91463.0,91460.0,0.06560232]
[1767513120342,0.05466673,91464.0,91462.0,0.04912989]
[1767513120934,0.01093314,91465.0,91462.0,0.04912989]
[1767513121132,0.05466691,91463.0,91462.0,0.04912989]
[1767513121333,0.01093302,91466.0,91462.0,0.04912989]
[1767513121533,0.05466691,91463.0,91462.0,0.04912989]
[1767513121737,0.0556668,91462.0,91460.0,0.11473195]
[1767513121940,0.0546678,91462.0,91460.0,0.11473195]
[1767513122578,0.0546681,91461.0,91460.0,0.04813089]
[1767513124976,0.05466925,91460.0,91458.0,0.02188]
[1767513125185,0.0546693,91459.0,91458.0,0.07100989]
[1767513125791,0.06560437,91458.0,91457.0,0.02188]
[1767513126028,0.06555937,91458.0,91457.0,0.02188]
[1767513127691,0.06456037,91458.0,91457.0,0.02188]
[1767513128867,0.06456037,91458.0,91452.0,0.11473805]
[1767513128868,0.06560604,91455.0,91453.0,0.04912989]
[1767513129065,0.06560604,91455.0,91454.0,0.07100989]
[1767513129370,0.00993533,91455.0,91454.0,0.07100989]
[1767513129767,0.05467126,91456.0,91454.0,0.07100989]
[1767513129966,0.05467122,91456.0,91454.0,0.07100989]
[1767513130167,0.05467169,91455.0,91454.0,0.07100989]
[1767513130867,0.0546105,91455.0,91454.0,0.07100989]
[1767513131784,0.0546105,91455.0,91454.0,0.04912989]
[1767513132122,0.05467122,91456.0,91455.0,0.04912989]
[1767513132525,0.06560493,91457.0,91455.0,0.07100989]
[1767513132741,0.06560493,91457.0,91455.0,0.04912989]
[1767513133040,0.0109341,91457.0,91455.0,0.04912989]
[1767513133247,0.0656046,91457.0,91456.0,0.02188]
[1767513134025,0.06456004,91458.0,91457.0,0.01]
[1767513134026,0.06456045,91458.0,91457.0,0.01]
[1767513134208,0.00988998,91458.0,91457.0,0.01]
[1767513134631,0.06455988,91458.0,91457.0,0.01]
[1767513135306,0.00988998,91458.0,91457.0,0.01]
[1767513135512,0.06455988,91458.0,91457.0,0.01]
[1767513136244,0.06356088,91458.0,91456.0,0.07100989]
[1767513136409,0.05466939,91459.0,91456.0,0.07100989]
[1767513136743,0.05467034,91458.0,91456.0,0.07100989]
[1767513137041,0.0546705,91457.0,91456.0,0.07001089]
[1767513139764,0.0536715,91457.0,91456.0,0.07001089]
[1767513143179,0.0536265,91457.0,91456.0,0.07001089]
[1767513143481,0.05467294,91453.0,91450.0,0.05467438]
[1767513143691,0.06560797,91453.0,91452.0,0.02188]
[1767513143883,0.0546734,91453.0,91452.0,0.02188]
[1767513144580,0.06560691,91454.0,91452.0,0.02188]
[1767513144830,0.01093505,91449.0,91445.0,0.0546772]
[1767513144995,0.01093529,91447.0,91444.0,0.02188]
[1767513145202,0.01093529,91447.0,91438.0,0.00047828]
[1767513145203,0.01093577,91443.0,91438.0,0.00047828]
[1767513145407,0.06561404,91444.0,91443.0,0.000999]
[1767513145709,0.06561404,91444.0,91440.0,0.01093613]
[1767513145855,0.01093565,91444.0,91441.0,0.01093601]
[1767513146055,0.06561422,91444.0,91440.0,0.01093613]
[1767513146277,0.06561422,91444.0,91440.0,0.06561631]
[1767513146576,0.06561467,91443.0,91440.0,0.06561631]
[1767513146797,0.06561467,91443.0,91438.0,0.01141465]
[1767513146798,0.000999,91440.0,91438.0,1e-08]
[1767513146979,0.05468365,91435.0,91434.0,1e-08]
[1767513147375,0.01093649,91437.0,91434.0,0.01093686]
[1767513147596,0.054682,91438.0,91437.0,0.000999]
[1767513147908,0.054682,91438.0,91434.0,0.01093686]
[1767513148112,0.05468254,91437.0,91434.0,0.01093686]
[1767513148315,0.054682,91438.0,91434.0,0.065621]
[1767513149019,0.054682,91438.0,91432.0,0.07656494]
[1767513149020,0.05468266,91437.0,91433.0,0.05468485]
[1767513149196,0.06561915,91437.0,91432.0,0.03281708]
[1767513149521,0.06561966,91436.0,91432.0,0.0875014]
[1767513149883,0.06561966,91436.0,91432.0,0.11475129]
[1767513150318,0.01093685,91434.0,91428.0,0.02188]
[1767513150520,0.05468545,91432.0,91429.0,0.05468722]
[1767513150682,0.06562304,91432.0,91429.0,0.05468724]
[1767513150888,0.06562304,91432.0,91429.0,0.01093744]
[1767513151296,0.21872781,91438.0,91432.0,0.000999]
[1767513151506,0.01093649,91437.0,91433.0,0.0546843]
[1767513151888,0.06561926,91437.0,91433.0,0.06562127]
[1767513152290,0.06561926,91437.0,91434.0,0.05468398]
[1767513153005,0.06561926,91437.0,91434.0,0.04468398]
[1767513153390,0.01093637,91438.0,91435.0,0.05468355]
[1767513153590,0.00047827,91442.0,91435.0,0.05468355]
[1767513153591,1e-08,91442.0,91440.0,0.04782126]
[1767513153828,1.2e-07,91449.0,91446.0,0.04782126]
[1767513154008,0.06561045,91449.0,91446.0,0.05875667]
[1767513154192,0.06561045,91449.0,91446.0,0.06561189]
[1767513154388,0.01093517,91449.0,91446.0,0.06561189]
[1767513154590,0.04982576,91461.0,91451.0,0.21869635]
[1767513154879,0.04982576,91461.0,91452.0,0.21869395]
[1767513155056,0.04982576,91461.0,91459.0,0.06560302]
[1767513155288,0.000152,91466.0,91463.0,0.01093338]
[1767513155475,0.000152,91466.0,91464.0,0.05466578]
[1767513155476,5.2e-05,91466.0,91464.0,0.05466578]
[1767513155674,5.2e-05,91466.0,91465.0,0.05466571]
[1767513155872,5.2e-05,91466.0,91464.0,0.05466578]
[1767513157238,5.2e-05,91466.0,91465.0,0.04782126]
[1767513158046,0.02188,91470.0,91467.0,0.04782126]
[1767513158255,0.02188,91470.0,91468.0,0.05466375]
[1767513158452,0.02188,91470.0,91469.0,0.05466332]
[1767513158695,0.02188,91470.0,91468.0,0.05466375]
[1767513158896,0.07654274,91470.0,91467.0,0.065597]
[1767513159100,0.08747528,91470.0,91467.0,0.06559729]
[1767513159281,0.03281254,91470.0,91467.0,0.06559729]
[1767513159683,0.02188,91470.0,91467.0,0.06559729]
[1767513159871,0.07654273,91470.0,91467.0,0.06559736]
[1767513160387,0.08747527,91470.0,91467.0,0.0109329]
[1767513161582,0.05466368,91469.0,91466.0,0.10248609]
[1767513161991,0.05466397,91468.0,91466.0,0.04782126]
[1767513162196,0.06559634,91469.0,91466.0,0.10248597]
[1767513163231,0.05466442,91468.0,91466.0,0.04782126]
[1767513163675,0.06559634,91469.0,91466.0,0.04782126]
[1767513163676,0.06559634,91469.0,91466.0,0.1134193]
[1767513163878,0.06559634,91469.0,91467.0,0.04782126]
[1767513164205,0.06559634,91469.0,91466.0,0.06568886]
[1767513164359,0.06559634,91469.0,91467.0,0.04782126]
[1767513166082,0.03281254,91470.0,91467.0,0.10248578]
[1767513166734,0.05466332,91469.0,91467.0,0.04782126]
[1767513167067,0.08747555,91470.0,91467.0,0.04782126]
[1767513167819,0.05466339,91469.0,91467.0,0.04782126]
[1767513167969,0.08747555,91470.0,91467.0,0.04782126]
[1767513168912,0.06559555,91470.0,91467.0,0.04782126]
[1767513169061,0.06559555,91470.0,91467.0,0.11341817]
[1767513169265,0.06559462,91471.0,91468.0,0.05466388]
[1767513169567,0.06559462,91471.0,91468.0,0.04782126]
[1767513169568,0.05466278,91470.0,91468.0,0.04782126]
[1767513169927,0.06559511,91471.0,91468.0,0.05875404]
[1767513170080,0.06559511,91471.0,91468.0,0.04782126]
[1767513170625,0.06559511,91471.0,91468.0,0.05875404]
[1767513170626,0.06559455,91471.0,91468.0,0.05875404]
[1767513170827,0.01093242,91471.0,91468.0,0.04782126]
[1767513171124,0.01093242,91471.0,91468.0,0.11341743]
[1767513171324,0.06559506,91471.0,91468.0,0.11341755]
[1767513171529,0.06559506,91471.0,91468.0,0.05875404]
[1767513171935,0.05466317,91470.0,91468.0,0.04782126]
[1767513172427,0.04982576,91473.0,91471.0,0.01549399]
[1767513172610,0.05466081,91475.0,91472.0,0.05466098]
[1767513172790,0.06559202,91476.0,91473.0,0.05466077]
[1767513173201,0.02188,91478.0,91475.0,0.01093194]
[1767513173401,0.02188,91478.0,91477.0,0.05465854]
[1767513173833,0.01188,91478.0,91477.0,0.05465854]
[1767513174039,0.000152,91484.0,91479.0,0.01093147]
[1767513174249,0.01108287,91484.0,91480.0,0.05465656]
[1767513174415,0.05465488,91484.0,91481.0,0.05465603]
[1767513174611,0.05465496,91483.0,91482.0,0.04782126]
[1767513174835,0.06558575,91484.0,91481.0,0.01093123]
[1767513175235,0.06558575,91484.0,91482.0,0.04782126]
[1767513175745,0.05465496,91483.0,91482.0,0.04782126]
[1767513175931,0.06558575,91484.0,91482.0,0.04782126]
[1767513176534,0.05465496,91483.0,91482.0,0.04782126]
[1767513177132,0.08746437,91486.0,91482.0,0.05875237]
[1767513177335,0.01093075,91485.0,91482.0,0.11340789]
[1767513177655,0.05465447,91484.0,91482.0,0.04782126]
[1767513177875,0.05465447,91484.0,91482.0,0.04753567]
[1767513178062,0.05465447,91484.0,91482.0,0.04725009]
[1767513178358,0.05465496,91483.0,91482.0,0.04725009]
[1767513178561,0.05465496,91483.0,91482.0,0.04625109]
[1767513179129,0.05365596,91483.0,91482.0,0.04625109]
[1767513180606,0.05465812,91478.0,91476.0,0.10245695]
[1767513180757,0.05465812,91478.0,91476.0,0.05365986]
[1767513181105,0.06558971,91478.0,91476.0,0.1024572]
[1767513181504,0.06558991,91479.0,91476.0,0.10245714]
[1767513182109,0.06558917,91480.0,91477.0,0.10245663]
[1767513182340,0.01093135,91480.0,91478.0,0.05465779]
[1767513182496,0.01093135,91480.0,91477.0,0.10245663]
[1767513182684,0.01093111,91482.0,91479.0,0.05465714]
[1767513183417,0.06558716,91482.0,91479.0,0.05465714]
[1767513184411,0.06558747,91481.0,91478.0,0.06558949]
[1767513184611,0.06558747,91481.0,91476.0,0.06559058]
[1767513184612,0.05465737,91479.0,91476.0,0.06559058]
[1767513184798,0.05465795,91478.0,91475.0,0.01093194]
[1767513184997,0.01093147,91479.0,91476.0,0.06559096]
[1767513185222,0.01093147,91479.0,91477.0,0.0546582]
[1767513185735,0.01,91477.0,91476.0,0.06559096]
[1767513186104,0.05465808,91478.0,91476.0,0.01093182]
[1767513186300,0.06558967,91478.0,91475.0,0.06559155]
[1767513186737,0.00022968,91490.0,91487.0,0.01093051]
[1767513186939,0.00022968,91490.0,91489.0,0.05465137]
[1767513187087,0.00022968,91490.0,91488.0,0.05460798]
[1767513187291,0.00022968,91490.0,91487.0,0.06558196]
[1767513187493,0.06558417,91486.0,91482.0,0.06558561]
[1767513187736,0.01,91487.0,91485.0,0.05465328]
[1767513187939,0.06558239,91488.0,91487.0,0.000999]
[1767513188247,0.06558239,91488.0,91485.0,0.06558403]
[1767513188879,0.02093075,91485.0,91478.0,0.01093159]
[1767513189059,0.01093123,91481.0,91476.0,0.01093182]
[1767513189257,0.05465801,91478.0,91476.0,0.02188]
[1767513189434,0.05465801,91478.0,91476.0,0.02183606]
[1767513189827,0.05465796,91478.0,91476.0,0.02183606]
[1767513190380,0.05465796,91478.0,91476.0,0.07649498]
[1767513190676,0.06558994,91479.0,91478.0,0.000999]
[1767513190876,0.06558994,91479.0,91476.0,0.0874268]
[1767513191082,0.01093147,91479.0,91476.0,0.02183606]
[1767513191238,0.0109317,91477.0,91474.0,0.01093206]
[1767513191444,0.06459132,91477.0,91475.0,0.05465974]
[1767513191977,0.06459132,91477.0,91472.0,0.02188]
[1767513191978,0.01093182,91476.0,91472.0,0.02188]
[1767513192174,0.01093206,91474.0,91471.0,0.01093242]
[1767513192381,0.01093206,91474.0,91471.0,0.03281242]
[1767513192880,0.05466153,91472.0,91471.0,0.02188]
[1767513193372,0.06559246,91474.0,91471.0,0.02188]
[1767513193576,0.01093206,91474.0,91471.0,0.08747413]
[1767513193777,0.01093206,91474.0,91471.0,0.02188]
[1767513193978,0.05466153,91472.0,91471.0,0.02188]
[1767513194178,0.05466109,91473.0,91471.0,0.02188]
[1767513194326,0.05466034,91474.0,91471.0,0.076541]
[1767513194533,0.05466034,91474.0,91472.0,0.04779809]
[1767513194833,0.05466034,91474.0,91471.0,0.076541]
[1767513195063,0.0655924,91474.0,91471.0,0.01093242]
[1767513195269,0.01093194,91475.0,91472.0,0.02188]
[1767513195467,0.05466046,91474.0,91472.0,0.02188]
[1767513196517,0.05465991,91475.0,91473.0,0.06559311]
[1767513196699,0.06559152,91476.0,91473.0,0.06559311]
[1767513197422,0.06559201,91475.0,91472.0,0.08747343]
[1767513198595,0.06559201,91475.0,91472.0,0.0328123]
[1767513198787,0.01093194,91475.0,91473.0,0.05466051]
[1767513199083,0.01093194,91475.0,91472.0,0.0328123]
[1767513199491,0.05466093,91473.0,91472.0,0.02188]
[1767513199709,0.0546693,91459.0,91456.0,0.05467078]
[1767513199908,0.0546705,91457.0,91456.0,0.02188]
[1767513200078,0.06560404,91458.0,91454.0,0.06560659]
[1767513200276,0.06560435,91459.0,91455.0,0.01093433]
[1767513200553,0.01093362,91461.0,91456.0,0.01083421]
[1767513200714,0.0656026,91460.0,91456.0,0.01083421]
[1767513200909,0.01093374,91460.0,91457.0,0.0109341]
[1767513201114,0.06560195,91461.0,91458.0,0.05466958]
[1767513201547,0.0109335,91462.0,91459.0,0.05466926]
[1767513201696,0.01104172,91462.0,91459.0,0.05466926]
[1767513201901,0.01104172,91462.0,91459.0,0.06460412]
[1767513202099,0.01104172,91462.0,91460.0,0.0546686]
[1767513202915,0.00010822,91462.0,91460.0,0.0546686]
[1767513203521,0.01,91460.0,91459.0,0.06560296]
[1767513203795,0.00010822,91462.0,91460.0,0.05466868]
[1767513203972,0.00010822,91462.0,91461.0,0.0546681]
[1767513205918,0.01,91461.0,91460.0,0.05466868]
[1767513206072,0.00010822,91462.0,91460.0,0.05466868]
[1767513206260,0.00010822,91462.0,91461.0,0.0546681]
[1767513206981,0.05477573,91462.0,91459.0,0.06560313]
[1767513207176,0.06570923,91462.0,91458.0,0.06560382]
[1767513207352,0.06570923,91462.0,91459.0,0.05466929]
[1767513207766,0.01104172,91462.0,91460.0,0.05466852]
[1767513208612,0.01104172,91462.0,91459.0,0.06560315]
[1767513208795,0.06570944,91462.0,91459.0,0.06560315]
[1767513208996,0.06471044,91462.0,91459.0,0.06560315]
[1767513209379,0.0546687,91460.0,91458.0,0.06560377]
[1767513209579,0.06560207,91461.0,91458.0,0.06560377]
[1767513209920,0.01004272,91462.0,91460.0,0.0546687]
[1767513210161,0.06471024,91462.0,91460.0,0.0546687]
[1767513210695,0.06471024,91462.0,91459.0,0.06560302]
[1767513214531,0.05466839,91461.0,91459.0,0.01093386]
[1767513215154,0.0546687,91460.0,91458.0,0.06560377]
[1767513215354,0.06560201,91461.0,91458.0,0.06560377]
[1767513215559,0.06560201,91461.0,91459.0,0.05466923]
[1767513216913,0.05466881,91460.0,91458.0,0.06560377]
[1767513217159,0.05466881,91460.0,91458.0,0.01093398]
[1767513217362,0.05466881,91460.0,91458.0,0.06560376]
[1767513218137,0.05466881,91460.0,91457.0,0.06560458]